lending/lending_fUSD_20250131
["ID","MTS","AMOUNT","RATE_DAILY","PERIOD"]
[351064488,1738323043355,-685.52,0.00016438,2]
[351064489,1738323043365,-500.0,0.00016438,2]
[351064490,1738323043374,-504.62025517,0.00016438,2]
[351064491,1738323043384,-500.0,0.00016438,2]
[351064492,1738323043393,-366.94469213,0.00016438,2]
[351064493,1738323043403,-500.0,0.00016438,2]
[351064494,1738323043412,-500.0,0.00016438,2]
[351064495,1738323043423,-151.0,0.00016438,2]
[351064496,1738323043432,-184.926739,0.00016438,2]
[351064497,1738323043441,-500.0,0.00016438,2]
[351064498,1738323043451,-500.0,0.00016438,2]
[351064499,1738323043461,-500.0,0.00016438,2]
[351064500,1738323043471,-504.76610878,0.00016438,2]
[351064501,1738323043481,-500.0,0.00016438,2]
[351064502,1738323043490,-500.0,0.00016438,2]
[351064503,1738323043500,-381.71213631,0.00016438,2]
[351064504,1738323043511,-527.17423844,0.00016438,2]
[351064505,1738323043520,-675.93,0.00016438,2]
[351064506,1738323043530,-500.0,0.00016438,2]
[351064507,1738323043540,-517.89,0.00016438,2]
[351064508,1738323043550,-500.0,0.00016438,2]
[351064509,1738323043559,-500.0,0.00016438,2]
[351064510,1738323043569,-500.0,0.00016438,2]
[351064511,1738323043584,-508.61841918,0.00016438,2]
[351064512,1738323043594,-1524.37,0.00016438,2]
[351064513,1738323043603,-952.99,0.00016438,2]
[351064514,1738323043613,-500.0,0.00016438,2]
[351064515,1738323043625,-1065.27,0.00016438,2]
[351064516,1738323043634,-500.0,0.00016438,2]
[351064517,1738323043644,-500.0,0.00016438,2]
[351064518,1738323043653,-500.0,0.00016438,2]
[351064519,1738323043663,-283.04467183,0.00016438,2]
[351064520,1738323043672,-540.49,0.00016438,2]
[351064521,1738323043682,-500.0,0.00016438,2]
[351064522,1738323043692,-1066.82,0.00016438,2]
[351064523,1738323043702,-500.0,0.00016438,2]
[351064524,1738323043711,-660.13,0.00016438,2]
[351064525,1738323043721,-500.0,0.00016438,2]
[351064526,1738323043730,-2110.08,0.00016438,2]
[351064527,1738323043740,-500.0,0.00016438,2]
[351064528,1738323043749,-500.0,0.00016438,2]
[351064529,1738323043758,-500.0,0.00016438,2]
[351064530,1738323043769,-500.0,0.00016438,2]
[351064531,1738323043779,-500.0,0.00016438,2]
[351064532,1738323043789,-508.88334653,0.00016438,2]
[351064533,1738323043798,-500.0,0.00016438,2]
[351064534,1738323043807,-872.44,0.00016438,2]
[351064535,1738323043817,-408.40108697,0.00016438,2]
[351064536,1738323043827,-394.85837732,0.00016438,2]
[351064537,1738323043836,-616.15336801,0.00016438,2]
[351064538,1738323043846,-500.0,0.00016438,2]
[351064539,1738323043859,-500.0,0.00016438,2]
[351064540,1738323043869,-500.0,0.00016438,2]
[351064541,1738323043881,-500.0,0.00016438,2]
[351064542,1738323043891,-500.0,0.00016438,2]
[351064543,1738323043901,-1188.82,0.00016438,2]
[351064544,1738323043911,-500.0,0.00016438,2]
[351064545,1738323043921,-500.0,0.00016438,2]
[351064546,1738323043931,-506.04968327,0.00016438,7]
[351064547,1738323043940,-500.0,0.00016438,2]
[351064548,1738323043950,-2212.75,0.00016438,2]
[351064550,1738323043959,-500.0,0.00016438,2]
[351064552,1738323043970,-500.0,0.00016438,2]
[351064554,1738323043982,-500.0,0.00016438,2]
[351064556,1738323043991,-500.0,0.00016438,2]
[351064558,1738323044001,-500.0,0.00016438,2]
[351064560,1738323044010,-500.0,0.00016438,2]
[351064562,1738323044021,-2571.72,0.00016438,2]
[351064564,1738323044031,-500.0,0.00016438,2]
[351064566,1738323044040,-500.0,0.00016438,2]
[351064568,1738323044050,-2264.19,0.00016438,2]
[351064569,1738323044062,-1396.67,0.00016438,2]
[351064570,1738323044072,-500.0,0.00016438,2]
[351064571,1738323044081,-615.04,0.00016438,2]
[351064572,1738323044091,-500.0,0.00016438,2]
[351064573,1738323044101,-549.05027739,0.00016438,2]
[351064574,1738323044111,-500.0,0.00016438,2]
[351064575,1738323044121,-500.0,0.00016438,2]
[351064576,1738323044133,-522.72864916,0.00016438,2]
[351064577,1738323044143,-500.0,0.00016438,2]
[351064578,1738323044152,-500.0,0.00016438,2]
[351064579,1738323044162,-500.0,0.00016438,2]
[351064580,1738323044171,-500.0,0.00016438,2]
[351064581,1738323044181,-1486.69,0.00016438,2]
[351064582,1738323044190,-500.0,0.00016438,2]
[351064583,1738323044200,-504.33753105,0.00016438,2]
[351064584,1738323044209,-500.0,0.00016438,2]
[351064585,1738323044219,-500.0,0.00016438,2]
[351064586,1738323044229,-309.89710917,0.00016438,2]
[351064587,1738323044238,-1434.53,0.00016438,2]
[351064588,1738323044247,-500.0,0.00016438,2]
[351064589,1738323044257,-500.0,0.00016438,2]
[351064590,1738323044266,-4002.22,0.00016438,2]
[351064591,1738323044276,-500.0,0.00016438,2]
[351064592,1738323044286,-842.74,0.00016438,2]
[351064593,1738323044295,-500.0,0.00016438,2]
[351064594,1738323044305,-500.0,0.00016438,2]
[351064595,1738323044314,-1857.52,0.00016438,2]
[351064596,1738323044323,-365.61440988,0.00016438,2]
[351064597,1738323044333,-506.57025605,0.00016438,2]
[351064598,1738323044342,-506.55829566,0.00016438,2]
[351064599,1738323044352,-500.0,0.00016438,2]
[351064600,1738323044361,-1874.3,0.00016438,2]
[351064601,1738323044371,-500.0,0.00016438,2]
[351064602,1738323044383,-151.188736,0.00016438,2]
[351064603,1738323044392,-500.0,0.00016438,2]
[351064604,1738323044402,-2209.64,0.00016438,2]
[351064605,1738323044411,-500.0,0.00016438,2]
[351064606,1738323044421,-500.0,0.00016438,2]
[351064607,1738323044666,-1744.69,0.00016438,2]
[351064608,1738323044677,-500.0,0.00016438,2]
[351064609,1738323044686,-500.0,0.00016438,2]
[351064610,1738323044695,-500.0,0.00016438,2]
[351064611,1738323044704,-500.0,0.00016438,2]
[351064612,1738323044714,-502.05209466,0.00016438,2]
[351064613,1738323044723,-500.0,0.00016438,2]
[351064614,1738323044733,-1162.31,0.00016438,2]
[351064615,1738323044742,-2054.43,0.00016438,2]
[351064616,1738323044752,-500.0,0.00016438,2]
[351064617,1738323044761,-500.0,0.00016438,2]
[351064618,1738323044770,-500.0,0.00016438,2]
[351064619,1738323044780,-151.187559,0.00016438,2]
[351064620,1738323044789,-500.0,0.00016438,2]
[351064621,1738323044798,-502.43062749,0.00016438,2]
[351064622,1738323044807,-500.0,0.00016438,2]
[351064623,1738323044816,-1690.08,0.00016438,2]
[351064624,1738323044826,-500.0,0.00016438,2]
[351064625,1738323044835,-500.0,0.00016438,2]
[351064626,1738323044844,-2453.26,0.00016438,2]
[351064627,1738323044853,-2088.93,0.00016438,2]
[351064628,1738323044863,-500.0,0.00016438,2]
[351064629,1738323044872,-500.0,0.00016438,2]
[351064630,1738323044882,-1384.15,0.00016438,2]
[351064631,1738323044891,-2748.88,0.00016438,2]
[351064632,1738323044900,-500.0,0.00016438,2]
[351064633,1738323044910,-500.0,0.00016438,2]
[351064634,1738323044919,-500.0,0.00016438,2]
[351064635,1738323044928,-1157.73,0.00016438,2]
[351064636,1738323044938,-500.0,0.00016438,2]
[351064637,1738323044947,-500.0,0.00016438,2]
[351064638,1738323044956,-500.0,0.00016438,2]
[351064639,1738323044966,-500.0,0.00016438,2]
[351064640,1738323044976,-500.0,0.00016438,2]
[351064641,1738323044989,-500.0,0.00016438,2]
[351064642,1738323044998,-936.11,0.00016438,2]
[351064643,1738323045008,-500.0,0.00016438,2]
[351064644,1738323045019,-500.0,0.00016438,2]
[351064645,1738323045028,-500.0,0.00016438,2]
[351064646,1738323045037,-783.32,0.00016438,2]
[351064647,1738323045046,-500.0,0.00016438,2]
[351064648,1738323045055,-823.42,0.00016438,2]
[351064649,1738323045065,-500.0,0.00016438,2]
[351064650,1738323045074,-522.93,0.00016438,2]
[351064651,1738323045084,-500.0,0.00016438,2]
[351064652,1738323045093,-507.49035426,0.00016438,2]
[351064653,1738323045102,-500.0,0.00016438,2]
[351064654,1738323045111,-500.0,0.00016438,2]
[351064655,1738323045120,-2972.09,0.00016438,2]
[351064656,1738323045131,-500.0,0.00016438,2]
[351064657,1738323045140,-186.19565069,0.00016438,2]
[351064658,1738323045150,-1094.11,0.00016438,2]
[351064659,1738323045159,-1202.8,0.00016438,2]
[351064660,1738323045168,-500.0,0.00016438,2]
[351064661,1738323045177,-1747.36,0.00016438,2]
[351064662,1738323045186,-500.0,0.00016438,2]
[351064663,1738323045197,-1325.09,0.00016438,2]
[351064664,1738323045206,-500.0,0.00016438,2]
[351064665,1738323045216,-500.0,0.00016438,2]
[351064666,1738323045226,-500.0,0.00016438,2]
[351064667,1738323045235,-500.0,0.00016438,2]
[351064668,1738323045245,-500.0,0.00016438,2]
[351064669,1738323045255,-705.87,0.00016438,2]
[351064670,1738323045266,-1401.57,0.00016438,2]
[351064671,1738323045275,-500.0,0.00016438,2]
[351064672,1738323045286,-500.0,0.00016438,2]
[351064673,1738323045299,-500.0,0.00016438,2]
[351064674,1738323045309,-500.0,0.00016438,2]
[351064675,1738323045318,-500.0,0.00016438,2]
[351064676,1738323045328,-959.86,0.00016438,2]
[351064677,1738323045337,-598.63,0.00016438,2]
[351064678,1738323045346,-500.0,0.00016438,2]
[351064679,1738323045355,-500.0,0.00016438,2]
[351064680,1738323045365,-506.8109045,0.00016438,30]
[351064681,1738323045378,-500.0,0.00016438,2]
[351064682,1738323045387,-500.0,0.00016438,2]
[351064683,1738323045397,-500.0,0.00016438,2]
[351064684,1738323045406,-1400.54,0.00016438,2]
[351064685,1738323045415,-500.0,0.00016438,2]
[351064686,1738323045424,-1501.98,0.00016438,2]
[351064687,1738323045433,-1280.35,0.00016438,2]
[351064688,1738323045442,-1680.19,0.00016438,2]
[351064689,1738323045451,-500.0,0.00016438,2]
[351064690,1738323045460,-500.0,0.00016438,2]
[351064691,1738323045469,-536.6,0.00016438,2]
[351064692,1738323045479,-526.79,0.00016438,2]
[351064693,1738323045489,-518.28497202,0.00016438,2]
[351064694,1738323045498,-1004.99,0.00016438,2]
[351064695,1738323045507,-500.0,0.00016438,2]
[351064696,1738323045516,-500.0,0.00016438,2]
[351064697,1738323045526,-1188.35,0.00016438,2]
[351064698,1738323045535,-529.21,0.00016438,2]
[351064699,1738323045545,-1116.16,0.00016438,2]
[351064700,1738323045554,-500.0,0.00016438,2]
[351064702,1738323045564,-1399.48,0.00016438,2]
[351064704,1738323045574,-500.0,0.00016438,2]
[351064706,1738323045583,-500.0,0.00016438,2]
[351064707,1738323045592,-500.0,0.00016438,2]
[351064709,1738323045601,-1496.14,0.00016438,2]
[351064710,1738323045611,-500.0,0.00016438,2]
[351064711,1738323045620,-500.0,0.00016438,2]
[351064712,1738323045634,-1080.75,0.00016438,2]
[351064713,1738323045643,-525.68474461,0.00016438,2]
[351064714,1738323045652,-500.0,0.00016438,2]
[351064715,1738323045661,-920.99,0.00016438,2]
[351064716,1738323045670,-500.0,0.00016438,2]
[351064717,1738323045680,-500.0,0.00016438,2]
[351064718,1738323045690,-500.0,0.00016438,2]
[351064719,1738323045699,-500.0,0.00016438,2]
[351064720,1738323045708,-500.0,0.00016438,2]
[351064721,1738323045718,-524.05,0.00016438,2]
[351064722,1738323045727,-500.0,0.00016438,2]
[351064723,1738323045737,-500.0,0.00016438,2]
[351064724,1738323045746,-500.0,0.00016438,2]
[351064725,1738323045755,-917.77,0.00016438,2]
[351064726,1738323045766,-500.0,0.00016438,2]
[351064727,1738323045777,-500.0,0.00016438,2]
[351064728,1738323045786,-500.0,0.00016438,2]
[351064729,1738323045795,-1491.37,0.00016438,2]
[351064730,1738323045805,-208.73900494,0.00016438,2]
[351064731,1738323045814,-500.0,0.00016438,2]
[351064732,1738323045824,-1066.06,0.00016438,2]
[351064733,1738323045833,-500.0,0.00016438,2]
[351064734,1738323045843,-1221.67,0.00016438,2]
[351064735,1738323045853,-715.06,0.00016438,2]
[351064736,1738323045862,-599.94,0.00016438,2]
[351064737,1738323045871,-543.14,0.00016438,2]
[351064738,1738323045882,-500.0,0.00016438,2]
[351064739,1738323045891,-508.55186849,0.00016438,2]
[351064740,1738323045900,-2242.55,0.00016438,2]
[351064741,1738323045909,-500.0,0.00016438,2]
[351064742,1738323045919,-967.53,0.00016438,2]
[351064743,1738323045928,-500.0,0.00016438,2]
[351064744,1738323045937,-300.0,0.00016438,2]
[351064745,1738323045947,-2304.6,0.00016438,2]
[351064746,1738323045956,-500.0,0.00016438,2]
[351064747,1738323045966,-500.0,0.00016438,2]
[351064748,1738323045976,-533.79,0.00016438,2]
[351064749,1738323045990,-674.76,0.00016438,2]
[351064750,1738323046000,-506.44257549,0.00016438,2]
[351064751,1738323046009,-500.0,0.00016438,2]
[351064752,1738323046020,-691.34,0.00016438,2]
[351064753,1738323046030,-500.0,0.00016438,2]
[351064754,1738323046039,-500.0,0.00016438,2]
[351064755,1738323046048,-424.12705576,0.00016438,2]
[351064756,1738323046059,-500.0,0.00016438,2]
[351064757,1738323046069,-500.0,0.00016438,2]
[351064758,1738323046078,-500.0,0.00016438,2]
[351064759,1738323046087,-655.5,0.00016438,2]
[351064760,1738323046096,-500.0,0.00016438,2]
[351064761,1738323046105,-927.88,0.00016438,2]
[351064762,1738323046114,-500.0,0.00016438,2]
[351064763,1738323046125,-500.0,0.00016438,2]
[351064764,1738323046134,-513.39473308,0.00016438,2]
[351064765,1738323046144,-500.0,0.00016438,2]
[351064766,1738323046153,-500.0,0.00016438,2]
[351064767,1738323046162,-500.0,0.00016438,2]
[351064768,1738323046171,-500.0,0.00016438,2]
[351064769,1738323046181,-1225.27,0.00016438,2]
[351064770,1738323046190,-500.0,0.00016438,2]
[351064771,1738323046199,-1232.82,0.00016438,2]
[351064772,1738323046208,-660.11,0.00016438,2]
[351064773,1738323046218,-500.0,0.00016438,2]
[351064774,1738323046227,-500.0,0.00016438,2]
[351064775,1738323046236,-500.0,0.00016438,2]
[351064776,1738323046245,-500.0,0.00016438,2]
[351064777,1738323046254,-2677.1,0.00016438,2]
[351064778,1738323046264,-500.93545538,0.00016438,2]
[351064779,1738323046272,-500.0,0.00016438,2]
[351064780,1738323046282,-500.0,0.00016438,2]
[351064781,1738323046291,-2095.21,0.00016438,2]
[351064782,1738323046300,-500.0,0.00016438,2]
[351064783,1738323046309,-500.0,0.00016438,2]
[351064784,1738323046318,-1904.55,0.00016438,2]
[351064785,1738323046327,-500.0,0.00016438,2]
[351064786,1738323046336,-500.0,0.00016438,2]
[351064787,1738323046345,-500.0,0.00016438,2]
[351064788,1738323046354,-500.0,0.00016438,2]
[351064789,1738323046363,-1345.25,0.00016438,2]
[351064790,1738323046375,-799.53,0.00016438,2]
[351064791,1738323046385,-503.09019445,0.00016438,2]
[351064792,1738323046394,-151.0,0.00016438,2]
[351064793,1738323046403,-500.0,0.00016438,2]
[351064794,1738323046413,-151.0,0.00016438,2]
[351064795,1738323046422,-151.0,0.00016438,2]
[351064796,1738323046432,-1324.34,0.00016438,2]
[351064797,1738323046441,-500.0,0.00016438,2]
[351064798,1738323046451,-500.0,0.00016438,2]
[351064799,1738323046460,-500.0,0.00016438,2]
[351064800,1738323046469,-500.0,0.00016438,2]
[351064801,1738323046479,-500.0,0.00016438,2]
[351064802,1738323046489,-500.0,0.00016438,2]
[351064803,1738323046498,-500.0,0.00016438,2]
[351064804,1738323046507,-500.0,0.00016438,2]
[351064805,1738323046516,-500.0,0.00016438,2]
[351064806,1738323046526,-500.0,0.00016438,2]
[351064807,1738323046536,-151.0,0.00016438,2]
[351064808,1738323046545,-151.0,0.00016438,2]
[351064809,1738323046554,-500.0,0.00016438,2]
[351064810,1738323046564,-156.521245,0.00016438,2]
[351064811,1738323046573,-1071.62,0.00016438,2]
[351064812,1738323046583,-500.0,0.00016438,2]
[351064813,1738323046593,-500.0,0.00016438,2]
[351064814,1738323046602,-500.0,0.00016438,2]
[351064815,1738323046611,-500.0,0.00016438,2]
[351064816,1738323046619,-529.47857909,0.00016438,2]
[351064817,1738323046631,-500.0,0.00016438,2]
[351064818,1738323046640,-565.20243101,0.00016438,2]
[351064819,1738323046649,-500.0,0.00016438,2]
[351064820,1738323046658,-500.0,0.00016438,2]
[351064821,1738323046667,-799.05,0.00016438,2]
[351064822,1738323046676,-500.0,0.00016438,2]
[351064823,1738323046685,-655.67,0.00016438,2]
[351064824,1738323046694,-500.0,0.00016438,2]
[351064825,1738323046703,-500.0,0.00016438,2]
[351064826,1738323046712,-264.47353235,0.00016438,2]
[351064827,1738323046722,-924.74,0.00016438,2]
[351064828,1738323046731,-500.0,0.00016438,2]
[351064829,1738323046740,-151.0,0.00016438,2]
[351064830,1738323046749,-151.0,0.00016438,2]
[351064831,1738323046759,-500.0,0.00016438,2]
[351064832,1738323046768,-151.0,0.00016438,2]
[351064833,1738323046777,-151.0,0.00016438,2]
[351064834,1738323046786,-151.0,0.00016438,2]
[351064835,1738323046795,-151.0,0.00016438,2]
[351064836,1738323046805,-4098.85,0.00016438,2]
[351064837,1738323046814,-186.951787,0.00016438,2]
[351064838,1738323046823,-500.0,0.00016438,2]
[351064839,1738323046832,-1415.06,0.00016438,2]
[351064840,1738323046842,-513.48,0.00016438,2]
[351064841,1738323046851,-639.23,0.00016438,2]
[351064842,1738323046860,-1437.94,0.00016438,2]
[351064843,1738323046869,-500.0,0.00016438,2]
[351064844,1738323046880,-151.0,0.00016438,2]
[351064845,1738323046889,-500.0,0.00016438,2]
[351064846,1738323046898,-151.0,0.00016438,2]
[351064847,1738323046907,-151.0,0.00016438,2]
[351064848,1738323046917,-151.0,0.00016438,2]
[351064849,1738323046926,-151.0,0.00016438,2]
[351064850,1738323046936,-151.0,0.00016438,2]
[351064851,1738323046947,-151.0,0.00016438,2]
[351064852,1738323046956,-151.0,0.00016438,2]
[351064853,1738323046966,-1179.86,0.00016438,2]
[351064854,1738323046978,-151.0,0.00016438,2]
[351064855,1738323046988,-718.04,0.00016438,2]
[351064856,1738323046997,-151.0,0.00016438,2]
[351064857,1738323047007,-151.0,0.00016438,2]
[351064858,1738323047017,-151.0,0.00016438,2]
[351064859,1738323047026,-151.0,0.00016438,2]
[351064860,1738323047035,-151.0,0.00016438,2]
[351064861,1738323047044,-500.0,0.00016438,2]
[351064862,1738323047056,-500.0,0.00016438,2]
[351064863,1738323047065,-500.0,0.00016438,2]
[351064864,1738323047074,-834.34,0.00016438,2]
[351064865,1738323047083,-1156.02,0.00016438,2]
[351064866,1738323047094,-500.0,0.00016438,2]
[351064867,1738323047103,-500.0,0.00016438,2]
[351064868,1738323047113,-502.20202017,0.00016438,2]
[351064869,1738323047280,-2167.27,0.00016438,2]
[351064870,1738323047290,-500.0,0.00016438,2]
[351064871,1738323047299,-678.8,0.00016438,2]
[351064872,1738323047309,-558.2872348,0.00016438,2]
[351064873,1738323047318,-512.67136202,0.00016438,2]
[351064874,1738323047327,-934.67,0.00016438,2]
[351064875,1738323047336,-773.7,0.00016438,2]
[351064876,1738323047345,-500.0,0.00016438,2]
[351064877,1738323047354,-500.0,0.00016438,2]
[351064878,1738323047363,-500.0,0.00016438,2]
[351064879,1738323047373,-762.18,0.00016438,2]
[351064880,1738323047383,-500.13138792,0.00016438,2]
[351064881,1738323047392,-2800.41,0.00016438,2]
[351064882,1738323047402,-500.0,0.00016438,2]
[351064883,1738323047411,-500.0,0.00016438,2]
[351064884,1738323047420,-500.0,0.00016438,2]
[351064885,1738323047430,-502.26471306,0.00016438,2]
[351064886,1738323047439,-500.0,0.00016438,2]
[351064887,1738323047450,-7193.56,0.00016438,2]
[351064888,1738323047459,-500.0,0.00016438,2]
[351064889,1738323047469,-425.24105999,0.00016438,2]
[351064890,1738323047479,-842.43,0.00016438,2]
[351064891,1738323047489,-2149.68,0.00016438,2]
[351064892,1738323047499,-734.91,0.00016438,2]
[351064893,1738323047508,-2943.67,0.00016438,2]
[351064894,1738323047518,-500.0,0.00016438,2]
[351064895,1738323047527,-500.0,0.00016438,2]
[351064896,1738323047537,-500.0,0.00016438,2]
[351064897,1738323047546,-500.0,0.00016438,2]
[351064898,1738323047555,-500.0,0.00016438,2]
[351064899,1738323047565,-524.86605455,0.00016438,2]
[351064900,1738323047574,-851.72,0.00016438,2]
[351064901,1738323047583,-500.0,0.00016438,2]
[351064902,1738323047592,-1288.98,0.00016438,2]
[351064903,1738323047601,-500.0,0.00016438,2]
[351064904,1738323047611,-500.0,0.00016438,2]
[351064905,1738323047620,-1500.88,0.00016438,2]
[351064906,1738323047632,-502.93709096,0.00016438,2]
[351064907,1738323047642,-948.46,0.00016438,2]
[351064908,1738323047651,-500.0,0.00016438,2]
[351064909,1738323047660,-500.0,0.00016438,2]
[351064910,1738323047670,-1329.35,0.00016438,2]
[351064911,1738323047679,-500.0,0.00016438,2]
[351064912,1738323047689,-500.0,0.00016438,2]
[351064913,1738323047699,-3834.64,0.00016438,2]
[351064914,1738323047708,-500.0,0.00016438,2]
[351064915,1738323047718,-500.0,0.00016438,2]
[351064916,1738323047727,-924.07,0.00016438,2]
[351064917,1738323047737,-500.0,0.00016438,2]
[351064918,1738323047747,-1040.64,0.00016438,2]
[351064919,1738323047756,-500.0,0.00016438,2]
[351064920,1738323047765,-500.0,0.00016438,2]
[351064921,1738323047774,-500.0,0.00016438,2]
[351064922,1738323047783,-500.0,0.00016438,2]
[351064923,1738323047792,-151.0,0.00016438,2]
[351064924,1738323047805,-500.0,0.00016438,2]
[351064925,1738323047814,-195.30765,0.00016438,2]
[351064926,1738323047823,-500.0,0.00016438,2]
[351064927,1738323047832,-151.0,0.00016438,2]
[351064928,1738323047841,-1562.87,0.00016438,2]
[351064929,1738323047851,-151.0,0.00016438,2]
[351064930,1738323047860,-151.0,0.00016438,2]
[351064931,1738323047869,-186.692207,0.00016438,2]
[351064932,1738323047879,-500.0,0.00016438,2]
[351064933,1738323047888,-1264.17,0.00016438,2]
[351064934,1738323047898,-500.0,0.00016438,2]
[351064935,1738323047907,-1799.72,0.00016438,2]
[351064936,1738323047916,-500.0,0.00016438,2]
[351064937,1738323047925,-500.0,0.00016438,2]
[351064938,1738323047935,-6544.06,0.00016438,2]
[351064939,1738323047944,-1156.79,0.00016438,2]
[351064940,1738323047953,-4272.8,0.00016438,2]
[351064941,1738323047963,-500.0,0.00016438,2]
[351064942,1738323047973,-964.18,0.00016438,2]
[351064943,1738323047985,-500.0,0.00016438,2]
[351064944,1738323047994,-5005.42,0.00016438,2]
[351064945,1738323048003,-500.0,0.00016438,2]
[351064946,1738323048012,-615.59,0.00016438,2]
[351064947,1738323048022,-500.0,0.00016438,2]
[351064948,1738323048033,-500.0,0.00016438,2]
[351064949,1738323048043,-7290.56,0.00016438,2]
[351064950,1738323048053,-1106.15,0.00016438,2]
[351064951,1738323048064,-3367.77,0.00016438,2]
[351064952,1738323048074,-2830.59,0.00016438,2]
[351064953,1738323048083,-500.0,0.00016438,2]
[351064954,1738323048093,-630.22,0.00016438,2]
[351064955,1738323048102,-500.0,0.00016438,2]
[351064956,1738323048111,-500.0,0.00016438,2]
[351064957,1738323048120,-820.23,0.00016438,2]
[351064958,1738323048130,-500.0,0.00016438,2]
[351064959,1738323048140,-500.0,0.00016438,2]
[351064960,1738323048151,-500.0,0.00016438,2]
[351064961,1738323048161,-665.12,0.00016438,2]
[351064962,1738323048179,-500.0,0.00016438,2]
[351064963,1738323048188,-500.0,0.00016438,2]
[351064964,1738323048197,-1258.51,0.00016438,2]
[351064965,1738323048206,-1387.06,0.00016438,2]
[351064966,1738323048216,-1775.32,0.00016438,2]
[351064967,1738323048225,-500.0,0.00016438,2]
[351064968,1738323048235,-3871.59,0.00016438,2]
[351064969,1738323048245,-1762.27,0.00016438,2]
[351064970,1738323048255,-1539.71,0.00016438,2]
[351064971,1738323048265,-1371.01,0.00016438,2]
[351064972,1738323048275,-710.8,0.00016438,2]
[351064973,1738323048284,-500.0,0.00016438,2]
[351064974,1738323048294,-500.0,0.00016438,2]
[351064975,1738323048303,-500.0,0.00016438,2]
[351064976,1738323048313,-962.21,0.00016438,2]
[351064977,1738323048322,-1636.23,0.00016438,2]
[351064978,1738323048331,-500.0,0.00016438,2]
[351064979,1738323048341,-500.0,0.00016438,2]
[351064980,1738323048351,-1456.65,0.00016438,2]
[351064981,1738323048360,-500.0,0.00016438,2]
[351064982,1738323048369,-500.0,0.00016438,2]
[351064983,1738323048381,-151.0,0.00016438,2]
[351064984,1738323048391,-1387.02,0.00016438,2]
[351064985,1738323048404,-151.0,0.00016438,2]
[351064986,1738323048418,-151.0,0.00016438,2]
[351064987,1738323048427,-222.278609,0.00016438,2]
[351064988,1738323048437,-1380.28,0.00016438,2]
[351064989,1738323048446,-502.85869965,0.00016438,2]
[351064990,1738323048456,-500.0,0.00016438,2]
[351064991,1738323048465,-151.0,0.00016438,2]
[351064992,1738323048474,-1906.65,0.00016438,2]
[351064993,1738323048484,-151.0,0.00016438,2]
[351064994,1738323048495,-1067.94,0.00016438,2]
[351064995,1738323048504,-151.0,0.00016438,2]
[351064996,1738323048514,-500.0,0.00016438,2]
[351064997,1738323048523,-500.0,0.00016438,2]
[351064998,1738323048532,-151.0,0.00016438,2]
[351064999,1738323048542,-500.0,0.00016438,2]
[351065000,1738323048551,-151.0,0.00016438,2]
[351065001,1738323048560,-500.0,0.00016438,2]